[Event "FIDE World Rapid Chess Championship 2021"]
[White "Dvirnyy, Danyyil"]
[Black "Lopusiewicz, Piotr"]
[WhiteFideId "817570"]
[BlackFideId "1116029"]
[WhiteElo "2550"]
[BlackElo "2197"]
[Result "1/2-1/2"]
[Round "13"]
[TimeControl "900+10"]
[Date "2021.12.28"]
[WhiteClock "0:01:59"]
[BlackClock "0:00:19"]

1. e4 {[%clk 0:15:00]}  e5 {[%clk 0:15:00]} 2. Nf3 {[%clk 0:15:00]}  Nc6 {[%clk 0:15:00]} 3. Bb5 {[%clk 0:15:00]}  a6 {[%clk 0:15:00]} 4. Ba4 {[%clk 0:15:00]}  Nf6 {[%clk 0:15:00]} 5. O-O {[%clk 0:15:00]}  Be7 {[%clk 0:16:23]} 6. Re1 {[%clk 0:16:35]}  b5 {[%clk 0:16:23]} 7. Bb3 {[%clk 0:16:35]}  O-O {[%clk 0:16:23]} 8. c3 {[%clk 0:16:35]}  d5 {[%clk 0:16:23]} 9. exd5 {[%clk 0:16:35]}  Nxd5 {[%clk 0:16:23]} 10. Nxe5 {[%clk 0:16:35]}  Nxe5 {[%clk 0:16:23]} 11. Rxe5 {[%clk 0:16:35]}  Bb7 {[%clk 0:16:23]} 12. d4 {[%clk 0:16:35]}  Bf6 {[%clk 0:16:23]} 13. Re1 {[%clk 0:16:35]}  Re8 {[%clk 0:16:23]} 14. Na3 {[%clk 0:15:49]}  b4 {[%clk 0:16:25]} 15. cxb4 {[%clk 0:15:49]}  Nxb4 {[%clk 0:16:25]} 16. Bd2 {[%clk 0:10:47]}  Nd3 {[%clk 0:14:51]} 17. Rxe8+ {[%clk 0:10:20]}  Qxe8 {[%clk 0:12:04]} 18. Be3 {[%clk 0:10:20]}  Qe4 {[%clk 0:12:04]} 19. Qf3 {[%clk 0:10:20]}  Qxf3 {[%clk 0:11:26]} 20. gxf3 {[%clk 0:06:04]}  Bxf3 {[%clk 0:11:26]} 21. Bc4 {[%clk 0:06:04]}  Nxb2 {[%clk 0:11:00]} 22. Bf1 {[%clk 0:05:13]}  c5 {[%clk 0:11:00]} 23. Rb1 {[%clk 0:05:20]}  cxd4 {[%clk 0:08:17]} 24. Bd2 {[%clk 0:05:20]}  Nd1 {[%clk 0:08:17]} 25. Rb6 {[%clk 0:05:20]}  a5 {[%clk 0:07:06]} 26. Bg2 {[%clk 0:03:39]}  Bxg2 {[%clk 0:05:50]} 27. Kxg2 {[%clk 0:03:39]}  Nc3 {[%clk 0:05:50]} 28. Bxc3 {[%clk 0:03:39]}  dxc3 {[%clk 0:05:50]} 29. Rc6 {[%clk 0:03:39]}  h6 {[%clk 0:04:20]} 30. Nb5 {[%clk 0:01:42]}  Rb8 {[%clk 0:04:20]} 31. a4 {[%clk 0:01:42]}  Rd8 {[%clk 0:04:20]} 32. Nxc3 {[%clk 0:01:42]}  Bxc3 {[%clk 0:04:20]} 33. Rxc3 {[%clk 0:01:42]}  Rd4 {[%clk 0:04:20]} 34. Ra3 {[%clk 0:01:42]}  g5 {[%clk 0:04:20]} 35. h3 {[%clk 0:01:42]}  Kg7 {[%clk 0:04:20]} 36. Kf3 {[%clk 0:01:42]}  Kg6 {[%clk 0:04:20]} 37. Kg3 {[%clk 0:01:42]}  Rc4 {[%clk 0:04:20]} 38. Kf3 {[%clk 0:01:42]}  f5 {[%clk 0:04:20]} 39. Kg3 {[%clk 0:01:42]}  f4+ {[%clk 0:04:20]} 40. Kf3 {[%clk 0:02:39]}  Kf5 {[%clk 0:03:50]} 41. Rb3 {[%clk 0:02:39]}  Rxa4 {[%clk 0:03:50]} 42. Rb5+ {[%clk 0:02:39]}  Kg6 {[%clk 0:03:50]} 43. Rb6+ {[%clk 0:02:39]}  Kh5 {[%clk 0:03:50]} 44. Ra6 {[%clk 0:02:39]}  Ra3+ {[%clk 0:03:50]} 45. Kg2 {[%clk 0:02:39]}  g4 {[%clk 0:02:38]} 46. hxg4+ {[%clk 0:02:41]}  Kxg4 {[%clk 0:02:38]} 47. Rxh6 {[%clk 0:02:41]}  f3+ {[%clk 0:02:38]} 48. Kh2 {[%clk 0:02:41]}  Ra2 {[%clk 0:02:38]} 49. Rg6+ {[%clk 0:02:41]}  Kf5 {[%clk 0:02:38]} 50. Ra6 {[%clk 0:02:41]}  Kf4 {[%clk 0:02:38]} 51. Rf6+ {[%clk 0:02:41]}  Ke4 {[%clk 0:02:38]} 52. Kg3 {[%clk 0:02:41]}  Ra3 {[%clk 0:01:26]} 53. Rf4+ {[%clk 0:03:04]}  Kd5 {[%clk 0:01:26]} 54. Rf5+ {[%clk 0:03:04]}  Ke4 {[%clk 0:01:26]} 55. Rf4+ {[%clk 0:03:04]}  Ke5 {[%clk 0:01:26]} 56. Rc4 {[%clk 0:03:04]}  Kd5 {[%clk 0:01:26]} 57. Rf4 {[%clk 0:03:04]}  a4 {[%clk 0:01:32]} 58. Rf5+ {[%clk 0:02:16]}  Kc4 {[%clk 0:01:32]} 59. Rf4+ {[%clk 0:02:16]}  Kd5 {[%clk 0:01:32]} 60. Rf5+ {[%clk 0:02:16]}  Ke6 {[%clk 0:01:32]} 61. Rf4 {[%clk 0:02:16]}  Ke7 {[%clk 0:01:32]} 62. Rd4 {[%clk 0:02:16]}  Kf6 {[%clk 0:01:32]} 63. Rf4+ {[%clk 0:02:16]}  Ke5 {[%clk 0:01:32]} 64. Rc4 {[%clk 0:02:16]}  Kd5 {[%clk 0:01:32]} 65. Rf4 {[%clk 0:02:16]}  Kc6 {[%clk 0:01:32]} 66. Rf6+ {[%clk 0:02:16]}  Kb5 {[%clk 0:01:32]} 67. Rf5+ {[%clk 0:02:16]}  Kb4 {[%clk 0:01:32]} 68. Rf4+ {[%clk 0:02:16]}  Kb3 {[%clk 0:01:32]} 69. Kxf3 {[%clk 0:02:16]}  Ra1 {[%clk 0:01:32]} 70. Re4 {[%clk 0:02:16]}  Rc1 {[%clk 0:01:32]} 71. Re8 {[%clk 0:03:36]}  Rc4 {[%clk 0:00:44]} 72. Kg3 {[%clk 0:03:36]}  a3 {[%clk 0:00:44]} 73. f4 {[%clk 0:03:36]}  a2 {[%clk 0:00:44]} 74. Re1 {[%clk 0:03:36]}  Kb2 {[%clk 0:00:19]} 75. Kg4 {[%clk 0:01:59]}  Rc1 {[%clk 0:00:19]} 76. Re2+ {[%clk 0:01:59]}  Kb3 {[%clk 0:00:19]} 77. Rxa2 {[%clk 0:01:59]}  Kxa2 {[%clk 0:00:19]} 78. Kf5 {[%clk 0:01:59]}  Kb3 {[%clk 0:00:19]} 79. Ke6 {[%clk 0:01:59]}  Kc4 {[%clk 0:00:19]} 80. f5 {[%clk 0:01:59]}  Kc5 {[%clk 0:00:19]} 81. f6 {[%clk 0:01:59]}  Re1+ {[%clk 0:00:19]} 82. Kd7 {[%clk 0:01:59]}  Rf1 {[%clk 0:00:19]} 83. Ke7 {[%clk 0:01:59]}  Kc6 {[%clk 0:00:19]} 84. f7 {[%clk 0:01:59]}  Re1+ {[%clk 0:00:19]} 85. Kf6 {[%clk 0:01:59]}  Kd7 {[%clk 0:00:19]} 86. f8=Q {[%clk 0:01:59]}  Rf1+ {[%clk 0:00:19]} 87. Kg7 {[%clk 0:01:59]}  Rxf8 {[%clk 0:00:19]} 88. Kxf8 {[%clk 0:01:59]} 1/2-1/2


[Site "http://www.Chess.com"]

[Event "FIDE World Rapid Chess Championship 2021"]
[White "Toczek, Grzegorz"]
[Black "Peng, Li Min"]
[WhiteFideId "1106457"]
[BlackFideId "14112620"]
[WhiteElo "2220"]
[BlackElo "2411"]
[Result "0-1"]
[Round "13"]
[TimeControl "900+10"]
[Date "2021.12.28"]
[WhiteClock "0:06:19"]
[BlackClock "0:11:13"]

1. e4 {[%clk 0:15:00]}  c5 {[%clk 0:15:00]} 2. Nf3 {[%clk 0:15:00]}  d6 {[%clk 0:15:00]} 3. d4 {[%clk 0:15:00]}  cxd4 {[%clk 0:15:00]} 4. Nxd4 {[%clk 0:15:00]}  Nf6 {[%clk 0:15:00]} 5. Nc3 {[%clk 0:15:00]}  a6 {[%clk 0:15:00]} 6. h4 {[%clk 0:16:16]}  e5 {[%clk 0:16:17]} 7. Nb3 {[%clk 0:16:16]}  Be6 {[%clk 0:16:17]} 8. f4 {[%clk 0:16:16]}  exf4 {[%clk 0:16:17]} 9. Bxf4 {[%clk 0:16:16]}  d5 {[%clk 0:16:17]} 10. Nd4 {[%clk 0:16:16]}  Bb4 {[%clk 0:16:17]} 11. Nxe6 {[%clk 0:16:16]}  fxe6 {[%clk 0:16:17]} 12. exd5 {[%clk 0:14:15]}  Nxd5 {[%clk 0:16:15]} 13. Bd2 {[%clk 0:11:24]}  O-O {[%clk 0:16:16]} 14. Nxd5 {[%clk 0:11:24]}  Qxd5 {[%clk 0:16:16]} 15. Bxb4 {[%clk 0:11:24]}  Qe4+ {[%clk 0:16:16]} 16. Qe2 {[%clk 0:11:24]}  Qxb4+ {[%clk 0:16:16]} 17. c3 {[%clk 0:11:24]}  Qf4 {[%clk 0:16:16]} 18. Rh3 {[%clk 0:10:10]}  Nc6 {[%clk 0:16:50]} 19. Qf3 {[%clk 0:10:10]}  Qa4 {[%clk 0:16:48]} 20. Qe3 {[%clk 0:06:54]}  Rad8 {[%clk 0:15:41]} 21. Bd3 {[%clk 0:06:23]}  Nb4 {[%clk 0:15:41]} 22. cxb4 {[%clk 0:06:19]}  Qxb4+ {[%clk 0:11:13]} 23. Qd2 {[%clk 0:06:19]}  Rf1+ {[%clk 0:11:13]} 24. Kxf1 {[%clk 0:06:19]}  Qxd2 {[%clk 0:11:13]} 25. Bc4 {[%clk 0:06:19]}  Qf4+ {[%clk 0:11:13]} 0-1


[Site "http://www.Chess.com"]

[Event "FIDE World Rapid Chess Championship 2021"]
[White "Blanco Acevedo, Cristobal Jose"]
[Black "Yunusov, Mukhammad"]
[WhiteFideId "3900525"]
[BlackFideId "14700930"]
[WhiteElo "2289"]
[BlackElo "1832"]
[Result "1/2-1/2"]
[Round "13"]
[TimeControl "900+10"]
[Date "2021.12.28"]
[WhiteClock "0:00:17"]
[BlackClock "0:00:44"]

1. d4 {[%clk 0:15:00]}  d5 {[%clk 0:15:00]} 2. Nf3 {[%clk 0:15:00]}  Nf6 {[%clk 0:15:00]} 3. c4 {[%clk 0:15:00]}  c6 {[%clk 0:15:00]} 4. e3 {[%clk 0:15:00]}  a6 {[%clk 0:15:30]} 5. c5 {[%clk 0:15:31]}  Bg4 {[%clk 0:15:30]} 6. Nc3 {[%clk 0:15:31]}  Nbd7 {[%clk 0:15:30]} 7. b4 {[%clk 0:15:31]}  e5 {[%clk 0:15:30]} 8. h3 {[%clk 0:15:31]}  Bxf3 {[%clk 0:15:30]} 9. Qxf3 {[%clk 0:15:31]}  Be7 {[%clk 0:14:28]} 10. Bb2 {[%clk 0:15:48]}  exd4 {[%clk 0:14:28]} 11. exd4 {[%clk 0:15:48]}  O-O {[%clk 0:14:28]} 12. Bd3 {[%clk 0:15:48]}  b6 {[%clk 0:11:41]} 13. O-O {[%clk 0:16:03]}  a5 {[%clk 0:11:41]} 14. a3 {[%clk 0:16:03]}  axb4 {[%clk 0:11:41]} 15. axb4 {[%clk 0:16:03]}  bxc5 {[%clk 0:11:41]} 16. bxc5 {[%clk 0:16:03]}  Qc7 {[%clk 0:11:41]} 17. Rfe1 {[%clk 0:16:18]}  Rxa1 {[%clk 0:09:23]} 18. Bxa1 {[%clk 0:16:18]}  Re8 {[%clk 0:09:23]} 19. Bb2 {[%clk 0:16:18]}  Bf8 {[%clk 0:09:23]} 20. Rxe8 {[%clk 0:15:48]}  Nxe8 {[%clk 0:08:38]} 21. Bc1 {[%clk 0:15:48]}  g6 {[%clk 0:08:38]} 22. Qe2 {[%clk 0:15:48]}  Nef6 {[%clk 0:08:38]} 23. Qa2 {[%clk 0:15:48]}  Qb7 {[%clk 0:08:38]} 24. Qa6 {[%clk 0:14:21]}  Qb4 {[%clk 0:05:26]} 25. Ne2 {[%clk 0:13:25]}  Qe1+ {[%clk 0:04:07]} 26. Kh2 {[%clk 0:12:06]}  Qxf2 {[%clk 0:04:07]} 27. Qa5 {[%clk 0:12:15]}  Ne4 {[%clk 0:01:33]} 28. Qd8 {[%clk 0:12:15]}  Nef6 {[%clk 0:00:10]} 29. Qa5 {[%clk 0:11:06]}  h5 {[%clk 0:00:00]} 30. Qd2 {[%clk 0:11:06]}  Bg7 {[%clk 0:00:00]} 31. Qf4 {[%clk 0:11:06]}  Qe1 {[%clk 0:00:00]} 32. Qe3 {[%clk 0:06:47]}  Nf8 {[%clk 0:00:14]} 33. Nf4 {[%clk 0:06:47]}  Qd1 {[%clk 0:00:14]} 34. Qd2 {[%clk 0:06:47]}  Qa4 {[%clk 0:00:14]} 35. Bc2 {[%clk 0:04:16]}  Qa1 {[%clk 0:00:04]} 36. Ne2 {[%clk 0:04:16]}  Ne4 {[%clk 0:00:04]} 37. Qb4 {[%clk 0:04:16]}  Ne6 {[%clk 0:00:04]} 38. Be3 {[%clk 0:04:16]}  Qf1 {[%clk 0:00:04]} 39. Ng1 {[%clk 0:04:16]}  Qa6 {[%clk 0:00:04]} 40. Nf3 {[%clk 0:04:16]}  Bf6 {[%clk 0:00:04]} 41. Qb8+ {[%clk 0:03:12]}  Kg7 {[%clk 0:00:13]} 42. Bf4 {[%clk 0:03:12]}  Nxf4 {[%clk 0:00:29]} 43. Qxf4 {[%clk 0:00:52]}  Qe2 {[%clk 0:00:29]} 44. Ba4 {[%clk 0:00:52]}  Qa6 {[%clk 0:00:29]} 45. Bc2 {[%clk 0:00:52]}  Nc3 {[%clk 0:00:29]} 46. Qe3 {[%clk 0:00:52]}  Qc4 {[%clk 0:00:29]} 47. Ne5 {[%clk 0:00:52]}  Qb4 {[%clk 0:00:29]} 48. Nxc6 {[%clk 0:00:52]}  Qb2 {[%clk 0:00:29]} 49. Qd3 {[%clk 0:00:52]}  Nb5 {[%clk 0:00:29]} 50. Bb3 {[%clk 0:00:52]}  Nxd4 {[%clk 0:00:29]} 51. Nxd4 {[%clk 0:00:16]}  Be5+ {[%clk 0:00:30]} 52. Kh1 {[%clk 0:00:16]}  Qc1+ {[%clk 0:00:30]} 53. Bd1 {[%clk 0:00:16]}  Qxc5 {[%clk 0:00:30]} 54. Nf3 {[%clk 0:00:16]}  Bf6 {[%clk 0:00:30]} 55. Ng1 {[%clk 0:00:16]}  d4 {[%clk 0:00:30]} 56. Be2 {[%clk 0:00:16]}  Qc1 {[%clk 0:00:30]} 57. Qc4 {[%clk 0:00:16]}  Qe1 {[%clk 0:00:30]} 58. Qd3 {[%clk 0:00:16]}  Qa1 {[%clk 0:00:30]} 59. g3 {[%clk 0:00:16]}  h4 {[%clk 0:00:30]} 60. Kg2 {[%clk 0:00:16]}  hxg3 {[%clk 0:00:30]} 61. Qxg3 {[%clk 0:00:16]}  Qb2 {[%clk 0:00:30]} 62. Qd3 {[%clk 0:00:16]}  Qb7+ {[%clk 0:00:30]} 63. Bf3 {[%clk 0:00:16]}  Qb2+ {[%clk 0:00:30]} 64. Ne2 {[%clk 0:00:16]}  Qa1 {[%clk 0:01:18]} 65. Ng3 {[%clk 0:01:00]}  Qb2+ {[%clk 0:01:18]} 66. Be2 {[%clk 0:01:00]}  Qb7+ {[%clk 0:01:18]} 67. Ne4 {[%clk 0:01:00]}  Be5 {[%clk 0:01:18]} 68. Bf3 {[%clk 0:01:00]}  Qb2+ {[%clk 0:01:18]} 69. Nf2 {[%clk 0:01:00]}  Bf6 {[%clk 0:01:18]} 70. Be2 {[%clk 0:01:00]}  Qb7+ {[%clk 0:01:18]} 71. Qe4 {[%clk 0:01:00]}  Qb2 {[%clk 0:01:18]} 72. Ng4 {[%clk 0:01:00]}  Bg5 {[%clk 0:01:18]} 73. Qe5+ {[%clk 0:01:00]}  Kh7 {[%clk 0:01:21]} 74. Qxg5 {[%clk 0:00:46]}  Qxe2+ {[%clk 0:01:21]} 75. Kg3 {[%clk 0:00:46]}  Qe1+ {[%clk 0:01:21]} 76. Kf3 {[%clk 0:00:46]}  Qh1+ {[%clk 0:01:21]} 77. Kg3 {[%clk 0:00:46]}  Qg1+ {[%clk 0:01:21]} 78. Kf3 {[%clk 0:00:46]}  Qh1+ {[%clk 0:01:21]} 79. Kg3 {[%clk 0:00:17]}  Qg1+ {[%clk 0:00:44]} 80. Kf3 {[%clk 0:00:17]}  Qh1+ {[%clk 0:00:44]} 81. Kg3 {[%clk 0:00:17]} 1/2-1/2


[Site "http://www.Chess.com"]